fUST/lending_fUST_20250228
["ID","MTS","AMOUNT","RATE_DAILY","PERIOD"]
[354789325,1740699047504,-500.0,0.00050136,120]
[354789326,1740699047515,-441.28799947,0.00050136,120]
[354789327,1740699047524,-500.0,0.00050136,120]
[354789328,1740699047534,-627.7,0.00050136,120]
[354789329,1740699047543,-500.0,0.0005041,120]
[354789330,1740699047556,-641.65,0.0005041,120]
[354789331,1740699047566,-337.62,0.0005041,120]
[354789332,1740699047575,-160.7,0.0005041,120]
[354789333,1740699047585,-500.0,0.0005041,120]
[354789334,1740699047594,-500.0,0.0005041,120]
[354789335,1740699047603,-500.0,0.0005041,120]
[354789336,1740699047613,-627.7,0.0005041,120]
[354789337,1740699047623,-500.0,0.00050684,120]
[354789338,1740699047632,-500.0,0.00050684,120]
[354789339,1740699047642,-500.0,0.00050684,120]
[354789340,1740699047655,-414.93,0.00050684,120]
[354789341,1740699047664,-627.7,0.00050684,120]
[354789342,1740699047673,-211.34092594,0.000509,12]
[354789343,1740699047684,-351.57,0.00050958,120]
[354789344,1740699047694,-500.0,0.00050958,120]
[354789345,1740699047704,-500.0,0.00050958,120]
[354789346,1740699047714,-627.7,0.00050958,120]
[354789347,1740699047723,-500.0,0.00051232,120]
[354789348,1740699047734,-241.11,0.00051232,120]
[354789349,1740699047744,-627.7,0.00051232,120]
[354789350,1740699047754,-500.0,0.00051506,120]
[354789351,1740699047763,-627.7,0.00051506,120]
[354789352,1740699047772,-500.0,0.0005178,120]
[354789353,1740699047781,-200.0,0.0005189,30]
[354789354,1740699047791,-177.74,0.000519,30]
[354789355,1740699047800,-6007.43291651,0.0005191,2]
[354789356,1740699047898,-33992.56708349,0.0005191,2]
[354789357,1740699047909,-500.0,0.00052054,120]
[354789358,1740699047918,-161.074883,0.0005227,2]
[354789359,1740699047928,-500.0,0.00052328,120]
[354789360,1740699047937,-475.72,0.000524,51]
[354789361,1740699047946,-475.72,0.000524,51]
[354789362,1740699047954,-475.72,0.000524,51]
[354789363,1740699047964,-475.72,0.000524,51]
[354789364,1740699047973,-475.72,0.000524,51]
[354789365,1740699047982,-475.72,0.000524,51]
[354789366,1740699047991,-475.72,0.000524,51]
[354789367,1740699048001,-475.72,0.000524,51]
[354789368,1740699048010,-475.72,0.000524,51]
[354789369,1740699048020,-475.72,0.000524,51]
[354789370,1740699048029,-475.72,0.000524,51]
[354789371,1740699048039,-475.72,0.000524,51]
[354789372,1740699048048,-1129.92,0.000526,2]
[354789373,1740699048057,-500.0,0.00052602,120]
[354789374,1740699048067,-500.0,0.00052876,120]
[354789375,1740699048076,-500.0,0.0005315,120]
[354789376,1740699048086,-197.32526047,0.00053321,47]
[354789377,1740699048095,-500.0,0.00053424,120]
[354789378,1740699048105,-500.0,0.00053698,120]
[354789379,1740699048114,-500.0,0.00053972,120]
[354789380,1740699048124,-449.99,0.00054246,120]
[354789381,1740699048134,-1186.11,0.00055378,120]
[354789382,1740699048143,-500.0,0.00055378,120]
[354789383,1740699048153,-1000.0,0.00055399,7]
[354789384,1740699048162,-1186.11,0.00055652,120]
[354789385,1740699048176,-500.0,0.00055652,120]
[354789386,1740699048186,-1186.11,0.00055926,120]
[354789387,1740699048196,-500.0,0.00055926,120]
[354789388,1740699048206,-1186.11,0.000562,120]
[354789389,1740699048215,-325.47,0.000562,120]
[354789390,1740699048225,-1186.11,0.00056474,120]
[354789391,1740699048234,-1186.11,0.00056748,120]
[354789392,1740699048244,-1186.11,0.00057022,120]
[354789393,1740699048253,-1186.11,0.00057296,120]
[354789394,1740699048263,-167.79,0.0005756,10]
[354789395,1740699048272,-1186.11,0.0005757,120]
[354789396,1740699048282,-1186.11,0.00057844,120]
[354789397,1740699048292,-1186.11,0.00058118,120]
[354789398,1740699048301,-1186.11,0.00058392,120]
[354789399,1740699048311,-1186.11,0.00058666,120]
[354789400,1740699048320,-1186.11,0.0005894,120]
[354789401,1740699048330,-2741.0,0.00059,120]
[354789402,1740699048339,-1186.11,0.00059214,120]
[354789403,1740699048348,-1186.11,0.00059488,120]
[354789404,1740699048358,-1186.11,0.00059762,120]
[354789405,1740699048367,-2200.0,0.00059797,120]
[354789406,1740699048376,-167.64,0.0005999,10]
[354789407,1740699048386,-289.93,0.0005999,10]
[354789408,1740699048394,-241.61,0.0005999,10]
[354789409,1740699048403,-201.34,0.0005999,10]
[354789410,1740699048413,-23000.0,0.0006,120]
[354789411,1740699048423,-471.910899,0.0006,120]
[354789412,1740699048432,-1186.11,0.00060036,120]
[354789413,1740699048441,-1186.11,0.0006031,120]
[354789414,1740699048451,-1186.11,0.00060584,120]
[354789415,1740699048460,-1186.11,0.00060858,120]
[354789416,1740699048469,-2741.0,0.00061,120]
[354789417,1740699048479,-1186.11,0.00061132,120]
[354789418,1740699048488,-1186.11,0.00061406,120]
[354789419,1740699048497,-1186.27,0.0006168,120]
[354789420,1740699048507,-500.0,0.00062911,120]
[354789421,1740699048516,-2741.0,0.00063,120]
[354789422,1740699048526,-1737.02113275,0.0006345,120]
[354789423,1740699048536,-500.0,0.0006385,120]
[354789424,1740699048546,-22658.08559333,0.00064,120]
[354789425,1740699048555,-45945.19974239,0.00064,120]
[354789426,1740699048570,-58389.81799947,0.00064,120]
[354789427,1740699068300,500.0,0.00049315,120]
[354789428,1740699068555,500.0,0.00049589,120]
[354789429,1740699068653,500.0,0.00049315,120]
[354789430,1740699068821,500.0,0.00049863,120]
[354789431,1740699075817,500.0,0.00049315,120]
[354789432,1740699076085,500.0,0.00049589,120]
[354789433,1740699076356,500.56,0.00049863,120]
[354789434,1740699079523,186.84368359,0.00049315,120]
[354789435,1740699096307,321.33100159,0.00049315,7]
[354789436,1740699142808,-500.0,0.00050136,120]
[354789437,1740699142834,-500.0,0.0005041,120]
[354789438,1740699142858,-501.18039987,0.00050557,7]
[354789439,1740699142896,-500.0,0.00050684,120]
[354789440,1740699142923,-500.0,0.00050958,120]
[354789441,1740699142948,-500.0,0.00051232,120]
[354789442,1740699142974,-536.32,0.00051506,120]
[354789443,1740699143000,-627.7,0.0005178,120]
[354789444,1740699143026,-700.0,0.00052053,15]
[354789445,1740699143055,-627.7,0.00052054,120]
[354789446,1740699143082,-627.7,0.00052328,120]
[354789447,1740699143110,-500.0,0.00052399,120]
[354789448,1740699143137,-627.7,0.00052602,120]
[354789449,1740699143163,-627.7,0.00052876,120]
[354789450,1740699143189,-627.7,0.0005315,120]
[354789451,1740699143215,-627.7,0.00053424,120]
[354789452,1740699143241,-627.7,0.00053698,120]
[354789453,1740699143270,-211.34092594,0.000539,13]
[354789454,1740699143297,-627.7,0.00053972,120]
[354789455,1740699143324,-231.0573324,0.00053972,2]
[354789456,1740699143350,-627.7,0.00054246,120]
[354789457,1740699143376,-627.7,0.0005452,120]
[354789458,1740699143402,-627.7,0.00054794,120]
[354789459,1740699143427,-979.0,0.00054826,15]
[354789460,1740699143457,-627.7,0.00055068,120]
[354789461,1740699143483,-627.7,0.00055342,120]
[354789462,1740699143509,-500.0,0.00055378,120]
[354789463,1740699143536,-500.0,0.00055378,120]
[354789464,1740699143561,-396.0,0.00055462,2]
[354789465,1740699143588,-627.80639965,0.00055616,120]
[354789466,1740699143614,-451.0,0.00057747,15]
[354789467,1740699163081,1016.92,0.000527,2]
[354789468,1740699198474,500.0,0.00049588,120]
[354789469,1740699198717,500.0,0.00049862,120]
[354789470,1740699199086,500.0,0.00050136,120]
[354789471,1740699199328,317.32,0.0005041,120]
[354789472,1740699307608,5716.2804841,0.00048241,2]
[354789473,1740699351213,915.23,0.000527,2]
[354789474,1740699353852,164.2124992,0.00049588,120]
[354789475,1740699359131,196.976286,0.00054538,2]
[354789476,1740699412974,500.0,0.00049588,120]
[354789477,1740699413322,500.0,0.00049862,120]
[354789478,1740699413571,500.0,0.00050136,120]
[354789479,1740699413833,500.0,0.0005041,120]
[354789480,1740699414111,500.0,0.00050684,120]
[354789481,1740699414396,500.0,0.00050958,120]
[354789482,1740699414675,500.0,0.00051232,120]
[354789483,1740699414941,500.0,0.00051506,120]
[354789484,1740699415245,500.0,0.0005178,120]
[354789485,1740699415500,500.0,0.00052054,120]
[354789486,1740699415740,500.0,0.00052328,120]
[354789487,1740699415996,500.0,0.00052602,120]
[354789488,1740699416237,500.0,0.00052876,120]
[354789489,1740699416486,500.0,0.0005315,120]
[354789490,1740699416738,500.0,0.00053424,120]
[354789491,1740699417008,500.0,0.00053698,120]
[354789492,1740699417296,500.0,0.00053972,120]
[354789493,1740699417657,500.0,0.00054246,120]
[354789494,1740699417913,500.0,0.0005452,120]
[354789495,1740699418157,500.0,0.00054794,120]
[354789496,1740699418666,530.96,0.00055068,120]
[354789497,1740699457558,500.0,0.00049588,120]
[354789498,1740699462350,1417.27,0.00049588,6]
[354789499,1740699462594,1417.27,0.00049862,6]
[354789500,1740699462865,1417.27,0.00050136,6]
[354789501,1740699463111,1417.27,0.0005041,6]
[354789502,1740699463406,1417.27,0.00050684,6]
[354789503,1740699463673,1417.27,0.00050958,6]
[354789504,1740699463956,1417.27,0.00051232,6]
[354789505,1740699464209,1417.27,0.00051506,6]
[354789506,1740699464476,382.43567284,0.0005178,6]
[354789509,1740699530269,500.0,0.00049588,120]
[354789510,1740699530522,500.0,0.00049899,120]
[354789511,1740699539219,500.0,0.00049588,120]
[354789512,1740699539486,402.30034712,0.00049862,120]
[354789513,1740699553779,306.17588256,0.00049588,120]
[354789516,1740699666709,1342.0,0.0005195,30]
[354789517,1740699715290,500.0,0.00049588,120]
[354789518,1740699725169,500.0,0.00049588,120]
[354789519,1740699726757,500.0,0.00049862,120]
[354789532,1740700232896,-500.0,0.00050136,120]
[354789533,1740700232906,-287.06,0.0005041,120]
[354789534,1740700232915,-1042.21267965,0.000523,120]
[354789535,1740700232925,-418.66,0.000524,51]
[354789536,1740700232934,-418.66,0.000524,51]
[354789537,1740700232944,-418.66,0.000524,51]
[354789538,1740700232952,-418.66,0.000524,51]
[354789539,1740700232963,-418.66,0.000524,51]
[354789540,1740700232973,-418.66,0.000524,51]
[354789541,1740700232982,-418.66,0.000524,51]
[354789542,1740700232992,-418.66,0.000524,51]
[354789543,1740700233001,-418.66,0.000524,51]
[354789544,1740700233011,-418.66,0.000524,51]
[354789545,1740700233021,-418.66,0.000524,51]
[354789546,1740700233030,-418.66,0.000524,51]
[354789547,1740700233041,-250.0,0.00052624,2]
[354789548,1740700233054,-355.3690173,0.0005265,2]
[354789549,1740700233064,-823.71,0.000527,2]
[354789551,1740700233074,-219.44754073,0.00055615,120]
[354789560,1740700241009,-280.55245927,0.00055615,120]
[354789561,1740700241020,-211.34092594,0.000559,13]
[354789562,1740700241030,-1200.0,0.0006,120]
[354789563,1740700241039,-4293.632,0.00060331,120]
[354789564,1740700241052,-500.0,0.00061095,6]
[354789565,1740700241062,-500.0,0.00061342,120]
[354789566,1740700241071,-500.0,0.00061369,120]
[354789568,1740700241080,-500.0,0.00061369,6]
[354789569,1740700241091,-500.0,0.000616,15]
[354789570,1740700241100,-500.0,0.00061609,120]
[354789571,1740700241109,-503.36246671,0.00061643,6]
[354789572,1740700241119,-500.0,0.00062163,120]
[354789573,1740700241129,-500.0,0.00063015,15]
[354789574,1740700241278,-500.0,0.00063998,120]
[354789575,1740700241288,-500.0,0.00063999,120]
[354789576,1740700241297,-500.0,0.00063999,120]
[354789577,1740700241307,-928.91,0.00063999,6]
[354789578,1740700241317,-1500.20723904,0.00064,120]
[354789579,1740700241326,-208.86,0.00064,30]
[354789580,1740700241337,-623.94,0.00064,30]
[354789581,1740700241346,-415.67,0.00064,30]
[354789582,1740700241355,-1180.79,0.00064,30]
[354789583,1740700241365,-500.0,0.00064272,120]
[354789584,1740700241375,-500.0,0.00064273,120]
[354789585,1740700241384,-928.91,0.00064273,6]
[354789586,1740700241394,-500.0,0.00064546,120]
[354789587,1740700241403,-500.0,0.00064547,120]
[354789588,1740700241412,-928.91,0.00064547,6]
[354789589,1740700241422,-500.0,0.0006482,120]
[354789590,1740700241431,-500.0,0.00064821,120]
[354789591,1740700241441,-928.91,0.00064821,6]
[354789592,1740700241450,-27365.7334108,0.0006497,2]
[354789593,1740700241460,-500.0,0.00064973,7]
[354789594,1740700241470,-82097.2002325,0.0006498,2]
[354789595,1740700241479,-500.0,0.00064989,120]
[354789596,1740700241490,-500.0,0.00064989,120]
[354789597,1740700241499,-500.0,0.00064989,120]
[354789598,1740700241508,-500.0,0.00064989,120]
[354789599,1740700241518,-241.16,0.00064989,120]
[354789600,1740700241527,-7122.56,0.00064989,120]
[354789601,1740700241537,-6722.99560493,0.0006499,2]
[354789602,1740700241605,-1562.79257308,0.0006499,2]
[354789628,1740700244229,-838.96,0.0006497,10]
[354789629,1740700244239,-9165.49113426,0.0006499,2]
[354789643,1740700505184,164.927012,0.00032877,2]
[354789644,1740700843440,2398.4,0.000243,30]
[354789645,1740700858152,500.0,0.00027,30]
[354789646,1740701170097,1205.75627706,0.000249,2]
[354789647,1740701170286,1205.75627706,0.000299,2]
[354789648,1740701170609,1205.75627706,0.000349,2]
[354789649,1740701237146,-833.77014372,0.000523,120]
[354789650,1740701237172,-368.44,0.000524,51]
[354789651,1740701237199,-368.44,0.000524,51]
[354789652,1740701237227,-368.44,0.000524,51]
[354789653,1740701237253,-368.44,0.000524,51]
[354789654,1740701237279,-368.44,0.000524,51]
[354789655,1740701237304,-368.44,0.000524,51]
[354789656,1740701237332,-368.44,0.000524,51]
[354789657,1740701237360,-368.44,0.000524,51]
[354789658,1740701237388,-368.44,0.000524,51]
[354789659,1740701237413,-368.44,0.000524,51]
[354789660,1740701237439,-368.44,0.000524,51]
[354789661,1740701237466,-368.44,0.000524,51]
[354789662,1740701237488,-741.34,0.000527,2]
[354789663,1740701237510,-1000.0,0.000527,60]
[354789664,1740701237531,-256.161739,0.00055496,30]
[354789665,1740701237554,-500.0,0.00055615,120]
[354789666,1740701237576,-500.0,0.00055615,120]
[354789667,1740701237598,-500.0,0.00055615,120]
[354789668,1740701237621,-3632.8948939,0.0005575,2]
[354789669,1740701237644,-211.34092594,0.000559,13]
[354789670,1740701237667,-160.0,0.00056082,2]
[354789671,1740701237688,-191.704,0.00056168,120]
[354789672,1740701237708,-250.0,0.00056168,120]
[354789673,1740701237729,-253.704,0.00057121,120]
[354789674,1740701237752,-186.0,0.00057121,2]
[354789675,1740701237773,-279.33,0.00057121,120]
[354789676,1740701237799,-371.564,0.00057121,2]
[354789677,1740701237822,-500.0,0.00061169,120]
[354789678,1740701237844,-500.0,0.00061169,120]
[354789679,1740701237865,-774.09,0.00061169,6]
[354789680,1740701237886,-500.0,0.00061329,15]
[354789681,1740701237905,-161.19190237,0.00061329,14]
[354789682,1740701237928,-500.0,0.00061443,120]
[354789683,1740701237951,-774.09,0.00061443,6]
[354789684,1740701237972,-500.0,0.00061717,120]
[354789685,1740701237994,-774.09,0.00061717,6]
[354789686,1740701238015,-500.0,0.00061991,120]
[354789687,1740701238037,-774.09,0.00061991,6]
[354789688,1740701238061,-500.0,0.0006219,120]
[354789689,1740701238083,-525.19631174,0.00062265,120]
[354789690,1740701238110,-774.09,0.00062265,6]
[354789691,1740701238132,-500.0,0.00062413,120]
[354789692,1740701238155,-774.09,0.00062539,6]
[354789693,1740701238178,-774.09,0.00062813,6]
[354789694,1740701238201,-774.09,0.00063087,6]
[354789695,1740701238223,-151.13663244,0.00063164,2]
[354789696,1740701238246,-774.09,0.00063361,6]
[354789697,1740701238268,-500.0,0.00063425,7]
[354789698,1740701238291,-774.09,0.00063635,6]
[354789699,1740701238316,-774.09,0.00063909,6]
[354789700,1740701238339,-500.0,0.00063997,120]
[354789701,1740701238361,-500.0,0.00063998,120]
[354789702,1740701238385,-501.171115,0.00063998,120]
[354789703,1740701238408,-774.09,0.00064183,6]
[354789704,1740701238433,-500.0,0.00064271,120]
[354789705,1740701238455,-500.0,0.00064272,120]
[354789706,1740701238480,-774.09,0.00064457,6]
[354789707,1740701238502,-500.0,0.00064545,120]
[354789708,1740701238524,-500.3179044,0.00064546,120]
[354789709,1740701238546,-774.09,0.00064731,6]
[354789710,1740701238568,-500.0,0.00064819,120]
[354789711,1740701238590,-8675.17630725,0.0006489,91]
[354789712,1740701238615,-21647.56034453,0.0006489,63]
[354789713,1740701238637,-173.88163774,0.0006489,2]
[354789714,1740701238660,-222000.0,0.0006489,2]
[354789715,1740701238683,-84080.0910522,0.000649,2]
[354789716,1740701238705,-161.074883,0.00064948,6]
[354789717,1740701238728,-6825.78,0.00064989,120]
[354789718,1740701238752,-500.0,0.00064989,120]
[354789719,1740701238775,-21020.0227631,0.0006499,2]
[354789720,1740701238798,-151.0,0.0006499,120]
[354789721,1740701238821,-105100.113815,0.0006499,2]
[354789722,1740701238844,-2741.0,0.00065,120]
[354789723,1740701238867,-205138.91177732,0.00065,120]
[354789724,1740701238891,-177.74,0.00065,30]
[354789725,1740701238915,-48069.13,0.00065,30]
[354789726,1740701238938,-561.54,0.00065,30]
[354789727,1740701238960,-187.97,0.00065,30]
[354789728,1740701238982,-332.54,0.00065,30]
[354789729,1740701239003,-1062.71,0.00065,30]
[354789730,1740701239026,-774.09,0.00065005,6]
[354789731,1740701239049,-500.0,0.00065093,120]
[354789732,1740701239072,-500.0,0.00065263,120]
[354789733,1740701239095,-774.09,0.00065279,6]
[354789734,1740701239120,-500.0,0.00065367,120]
[354789735,1740701239143,-500.0,0.00065537,120]
[354789736,1740701239165,-500.0,0.00065811,120]
[354789737,1740701239187,-500.0,0.00066085,120]
[354789738,1740701239209,-500.0,0.00066359,120]
[354789739,1740701239233,-833.77014372,0.0006645,120]
[354789740,1740701239257,-500.0,0.00066633,120]
[354789741,1740701239280,-1000.0,0.00066808,15]
[354789742,1740701239303,-500.0,0.00066907,120]
[354789743,1740701239326,-500.0,0.00066957,120]
[354789744,1740701239350,-2741.0,0.00067,120]
[354789745,1740701239375,-500.0,0.00067181,120]
[354789746,1740701239404,-173.88163773,0.00067356,2]
[354789747,1740701239428,-500.0,0.00067455,120]
[354789748,1740701239452,-500.0,0.00067729,120]
[354789749,1740701239475,-500.0,0.00068003,120]
[354789750,1740701239497,-17935.761984,0.00068215,120]
[354789751,1740701239519,-500.0,0.00068277,120]
[354789752,1740701239543,-500.0,0.0006838,120]
[354789753,1740701239566,-666.0,0.00068493,120]
[354789754,1740701239587,-1000.0,0.00068493,2]
[354789755,1740701239611,-500.0,0.00068529,14]
[354789756,1740701239633,-500.0,0.00068551,120]
[354789757,1740701239657,-500.0,0.00068825,120]
[354789758,1740701239679,-1000.0,0.00068904,7]
[354789759,1740701239701,-500.0,0.00069099,120]
[354789760,1740701239723,-500.0,0.00069373,120]
[354789761,1740701239745,-1062.71,0.000695,30]
[354789762,1740701239769,-500.0,0.00069647,120]
[354789763,1740701239791,-561.54,0.000698,30]
[354789764,1740701239813,-187.97,0.000698,30]
[354789765,1740701239835,-332.54,0.000698,30]
[354789766,1740701239858,-151.0,0.000698,40]
[354789767,1740701239879,-502.2636896,0.000698,120]
[354789768,1740701239902,-173.88163773,0.00069821,2]
[354789769,1740701239925,-4450.74616617,0.0006989,4]
[354789772,1740701296717,487.0,0.00051945,30]
[354789774,1740701355243,-1004.000002,0.00060545,120]
[354789775,1740701355266,-500.0,0.00061169,2]
[354789776,1740701355286,-500.0,0.00061169,120]
[354789777,1740701355307,-500.0,0.00061169,120]
[354789778,1740701355328,-500.0,0.00061443,2]
[354789779,1740701355349,-500.0,0.00061443,120]
[354789780,1740701355370,-500.0,0.00061717,2]
[354789781,1740701355389,-177.584,0.00061717,120]
[354789782,1740701355409,-500.0,0.0006193,120]
[354789783,1740701355431,-538.23247002,0.00061991,2]
[354789784,1740701355453,-500.0,0.00062754,120]
[354789785,1740701390955,667.2,0.000527,2]
[354789786,1740701413411,500.0,0.0006164,6]
[354789787,1740701413694,500.0,0.00061914,6]
[354789788,1740701414025,500.0,0.00062188,6]
[354789789,1740701414434,500.0,0.00062462,6]
[354789790,1740701414629,500.0,0.00062736,6]
[354789791,1740701414896,500.0,0.0006301,6]
[354789792,1740701415148,500.0,0.00063284,6]
[354789793,1740701415441,500.0,0.00063558,6]
[354789794,1740701415681,500.0,0.00063832,6]
[354789795,1740701415925,500.0,0.00064106,6]
[354789796,1740701426440,290.66352798,0.000524,51]
[354789797,1740701426470,33.58647202,0.000524,51]
[354789798,1740701426518,324.25,0.000524,51]
[354789799,1740701426562,324.25,0.000524,51]
[354789800,1740701426625,324.25,0.000524,51]
[354789801,1740701426685,324.25,0.000524,51]
[354789802,1740701426745,324.25,0.000524,51]
[354789803,1740701426808,324.25,0.000524,51]
[354789804,1740701426893,324.25,0.000524,51]
[354789805,1740701426924,324.25,0.000524,51]
[354789806,1740701426984,324.25,0.000524,51]
[354789807,1740701427053,175.53560798,0.000524,51]
[354789833,1740701432183,-148.71439202,0.000524,51]
[354789834,1740701432193,-324.25,0.000524,51]
[354789835,1740701432203,-500.0,0.0006438,6]
[354789836,1740701432212,-122.73090645,0.00064654,6]
[354789837,1740701432225,-377.26909355,0.00064654,6]
[354789838,1740701432234,-228.18090645,0.0006479,2]
[354789892,1740701438846,-221771.81909355,0.0006479,2]
[354789893,1740701438855,-176.48,0.000648,30]
[354789894,1740701438864,-43262.22,0.000648,30]
[354789895,1740701438873,-538.37,0.000648,30]
[354789896,1740701438883,-266.03,0.000648,30]
[354789897,1740701438892,-211.34092594,0.000649,16]
[354789898,1740701438903,-73736.09167154,0.000649,2]
[354789902,1740701440013,-1222.76775184,0.000647,28]
[354789903,1740701440023,-1505.00814396,0.000649,2]
[354789904,1740701440033,-192.82432716,0.00064928,6]
[354789905,1740701440043,-500.0,0.00064936,120]
[354789906,1740701440052,-6541.38,0.00064989,120]
[354789907,1740701440062,-302.0,0.00068493,2]
[354789908,1740701440072,-500.0,0.00068952,15]
[354789909,1740701440082,-11997.93584317,0.0006988,4]
[354789924,1740701534235,151.0,0.00045,120]
[354789925,1740701701718,-2986.27,0.00051945,30]
[354789926,1740701758598,196.68363,0.00032877,2]
[354789927,1740701805963,5000.0,0.0005,30]
[354789929,1740701902905,179.97998,0.00043606,2]
[354789933,1740702094617,5000.0,0.0005,30]
[354789941,1740702339111,-214.488,0.00051901,120]
[354789947,1740702439098,-1009.53289158,0.00051901,120]
[354789948,1740702439120,-2013.73,0.00052001,30]
[354789949,1740702439143,-172.34641537,0.00052001,30]
[354789950,1740702439169,-285.36,0.000524,51]
[354789951,1740702439195,-285.36,0.000524,51]
[354789952,1740702439221,-285.36,0.000524,51]
[354789953,1740702439248,-285.36,0.000524,51]
[354789954,1740702439274,-285.36,0.000524,51]
[354789955,1740702439300,-285.36,0.000524,51]
[354789956,1740702439326,-285.36,0.000524,51]
[354789957,1740702439351,-285.36,0.000524,51]
[354789958,1740702439376,-285.36,0.000524,51]
[354789959,1740702439402,-285.36,0.000524,51]
[354789960,1740702439426,-285.36,0.000524,51]
[354789961,1740702439451,-285.36,0.000524,51]
[354789962,1740702439477,-600.48,0.000527,2]
[354789963,1740702439498,-24900.0,0.00056751,2]
[354789964,1740702439519,-1090.02114686,0.00059866,28]
[354789965,1740702439540,-150.0,0.00059966,2]
[354789966,1740702439560,-150.0,0.00059966,2]
[354789967,1740702439581,-417.436,0.00059966,2]
[354789968,1740702439600,-507.69437537,0.00062025,15]
[354789969,1740702439622,-500.0,0.00062511,120]
[354789970,1740702439642,-150.0,0.00062966,2]
[354789971,1740702439662,-150.0,0.00062966,2]
[354789972,1740702439682,-397.0,0.00062966,2]
[354789973,1740702439702,-2200.0,0.00062986,120]
[354789974,1740702439722,-3857.26657462,0.00063905,2]
[354789975,1740702439742,-253.56875582,0.000646,2]
[354789976,1740702439764,-500.0,0.00064679,120]
[354789977,1740702439784,-500.0,0.00064679,120]
[354789978,1740702439809,-500.0,0.00064679,120]
[354789979,1740702439833,-500.0,0.00064679,120]
[354789980,1740702439854,-1041.66,0.00064679,120]
[354789981,1740702439876,-500.0,0.00064679,120]
[354789982,1740702439899,-367.17,0.0006468,10]
[354789983,1740702439920,-305.97,0.0006468,10]
[354789984,1740702439942,-254.98,0.0006468,10]
[354789985,1740702439965,-7045.83,0.00064689,120]
[354789986,1740702439987,-500.0,0.00064689,120]
[354789987,1740702440009,-500.0,0.00064689,7]
[354789988,1740702440030,-500.0,0.00064689,120]
[354789989,1740702440051,-500.0,0.00064689,120]
[354789990,1740702440076,-500.0,0.00064689,120]
[354789991,1740702440099,-500.0,0.00064689,2]
[354789992,1740702440121,-500.0,0.00064689,2]
[354789993,1740702440144,-500.0,0.00064689,2]
[354789994,1740702440168,-350.86694795,0.00064689,2]
[354789995,1740702440189,-32692.95668543,0.0006469,2]
[354789997,1740702450130,-500.0,0.00061071,120]
[354789998,1740702450152,-500.0,0.00061693,120]
[354789999,1740702450174,-500.0,0.00063449,120]
[354790000,1740702450196,-500.0,0.00064679,7]
[354790001,1740702450217,-212.48,0.0006468,10]
[354790002,1740702450238,-115547.21754323,0.0006469,2]
[354790003,1740702513090,1264.69886397,0.00052,90]